fUST/lending_fUST_20240630
["ID","MTS","AMOUNT","RATE_DAILY","PERIOD"]
[330733615,1719743439983,-500.0,0.00015421,2]
[330733617,1719743439992,-1047.47,0.00015421,2]
[330733619,1719743440003,-500.0,0.00015421,2]
[330733621,1719743440014,-1318.82,0.00015421,2]
[330733623,1719743440024,-500.0,0.00015421,2]
[330733625,1719743440034,-1993.28,0.00015421,2]
[330733627,1719743440044,-1103.87,0.00015421,2]
[330733629,1719743440057,-151.0,0.00015421,2]
[330733631,1719743440067,-151.0,0.00015421,2]
[330733633,1719743440078,-500.0,0.00015422,2]
[330733635,1719743440088,-705.42,0.00015422,2]
[330733637,1719743440098,-500.0,0.00015422,2]
[330733639,1719743440109,-500.0,0.00015422,2]
[330733641,1719743440119,-500.0,0.00015422,2]
[330733643,1719743440128,-500.0,0.00015422,2]
[330733645,1719743440139,-500.0,0.00015422,2]
[330733647,1719743440149,-897.14,0.00015422,2]
[330733649,1719743440159,-500.0,0.00015422,2]
[330733651,1719743440169,-500.0,0.00015422,2]
[330733653,1719743440180,-783.92,0.00015422,2]
[330733655,1719743440190,-500.0,0.00015422,2]
[330733657,1719743440200,-563.56,0.00015422,2]
[330733659,1719743440210,-500.0,0.00015422,2]
[330733661,1719743440220,-669.23,0.00015422,2]
[330733663,1719743440231,-500.0,0.00015422,2]
[330733665,1719743440242,-608.02249025,0.00015422,2]
[330733667,1719743440252,-500.0,0.00015422,2]
[330733669,1719743440262,-500.0,0.00015422,2]
[330733671,1719743440272,-500.0,0.00015422,2]
[330733673,1719743440282,-1219.74,0.00015422,2]
[330733675,1719743440292,-500.0,0.00015422,2]
[330733678,1719743440303,-500.0,0.00015422,2]
[330733680,1719743440313,-501.5589156,0.00015422,2]
[330733682,1719743440323,-500.0,0.00015422,2]
[330733684,1719743440332,-500.0,0.00015422,2]
[330733687,1719743440343,-500.0,0.00015422,2]
[330733690,1719743440353,-500.0,0.00015422,2]
[330733692,1719743440363,-1346.09,0.00015422,2]
[330733694,1719743440373,-500.0,0.00015422,2]
[330733696,1719743440384,-500.0,0.00015422,2]
[330733698,1719743440394,-500.0,0.00015422,2]
[330733700,1719743440404,-500.0,0.00015422,2]
[330733702,1719743440414,-500.0,0.00015422,2]
[330733704,1719743440424,-760.64,0.00015422,2]
[330733706,1719743440433,-500.0,0.00015422,2]
[330733708,1719743440443,-500.0,0.00015422,2]
[330733710,1719743440453,-548.5553125,0.00015422,2]
[330733712,1719743440463,-564.93040162,0.00015422,2]
[330733714,1719743440474,-501.49888466,0.00015422,2]
[330733716,1719743440484,-546.67653894,0.00015422,2]
[330733718,1719743440493,-569.51,0.00015422,2]
[330733720,1719743440503,-500.0,0.00015422,2]
[330733722,1719743440513,-500.0,0.00015422,2]
[330733724,1719743440523,-500.0,0.00015422,2]
[330733726,1719743440532,-500.0,0.00015422,2]
[330733728,1719743440542,-1734.63,0.00015422,2]
[330733730,1719743440553,-500.0,0.00015422,2]
[330733732,1719743440563,-500.0,0.00015422,2]
[330733734,1719743440573,-838.23,0.00015422,2]
[330733736,1719743440583,-500.0,0.00015422,2]
[330733738,1719743440592,-682.24,0.00015422,2]
[330733740,1719743440602,-722.7,0.00015422,2]
[330733742,1719743440612,-500.0,0.00015422,2]
[330733744,1719743440622,-500.0,0.00015422,2]
[330733746,1719743440632,-500.0,0.00015422,2]
[330733748,1719743440644,-500.0,0.00015422,2]
[330733750,1719743440657,-500.0,0.00015422,2]
[330733752,1719743440666,-500.0,0.00015422,2]
[330733754,1719743440678,-647.25,0.00015422,2]
[330733756,1719743440690,-500.0,0.00015422,2]
[330733758,1719743440700,-541.28,0.00015422,2]
[330733760,1719743440711,-500.0,0.00015422,2]
[330733762,1719743440721,-500.0,0.00015422,2]
[330733764,1719743440736,-500.0,0.00015422,2]
[330733766,1719743440748,-624.76,0.00015422,2]
[330733768,1719743440758,-500.0,0.00015422,2]
[330733770,1719743440768,-500.0,0.00015422,2]
[330733772,1719743440778,-1122.76,0.00015422,2]
[330733774,1719743440788,-625.34,0.00015422,2]
[330733776,1719743440797,-500.0,0.00015422,2]
[330733778,1719743440806,-1027.12,0.00015422,2]
[330733780,1719743440816,-539.08330788,0.00015422,2]
[330733782,1719743440827,-516.12035,0.00015422,2]
[330733784,1719743440836,-500.0,0.00015422,2]
[330733786,1719743440846,-509.39851051,0.00015422,2]
[330733846,1719743441433,-151.0,0.00015398,2]
[330733847,1719743441442,-151.0,0.00015421,2]
[330733848,1719743441451,-151.0,0.00015421,2]
[330733849,1719743441460,-6.72183949,0.00015422,2]
[330733850,1719743441468,-367.75911022,0.00015422,2]
[330733851,1719743441481,-132.24088978,0.00015422,2]
[330733852,1719743441490,-289.60180545,0.00015422,2]
[330733853,1719743441498,-500.0,0.00015422,2]
[330733855,1719743441508,-500.0,0.00015422,2]
[330733857,1719743441517,-500.0,0.00015422,2]
[330733859,1719743441527,-259.95869411,0.00015422,2]
[330735222,1719743468858,191.7722736,0.00014999,2]
[330735223,1719743478171,3074.51984466,0.00014999,2]
[330735224,1719743507386,6976.32251601,0.00014998,2]
[330735225,1719743556132,182.08872218,0.00014999,2]
[330735226,1719743569350,524.67444519,0.00014999,2]
[330735227,1719743586602,2130.41057228,0.00014999,2]
[330735249,1719743870666,658.02908992,0.00014999,2]
[330735250,1719743879155,155.27040457,0.00014999,2]
[330735251,1719743887130,164.36135579,0.00014999,2]
[330735252,1719743927093,250.0,0.0001433,2]
[330735256,1719743949548,638.26535884,0.00014999,2]
[330735257,1719743967295,155.2182794,0.00014999,2]
[330735258,1719743997293,155.2182794,0.00014999,2]
[330735259,1719744005655,2041.8718293,0.00014999,2]
[330735260,1719744025940,406.02029299,0.00014999,2]
[330735261,1719744050384,524.67444519,0.00014999,2]
[330735262,1719744069271,3347.34620951,0.00014999,2]
[330735263,1719744139431,2426.55228949,0.00015,2]
[330735266,1719744198892,293.13810397,0.00014999,2]
[330735268,1719744253646,2041.8718293,0.00014999,2]
[330735272,1719744278528,551.864758,0.00014335,2]
[330735273,1719744294466,2418.35340166,0.00015,2]
[330735274,1719744308203,326.94861135,0.00014999,2]
[330735275,1719744310190,2838.29501131,0.00015,2]
[330735276,1719744353404,156.1359142,0.00014999,2]
[330735277,1719744411150,254.4623028,0.00014999,2]
[330735282,1719744439966,2418.35340166,0.00015,2]
[330735283,1719744456931,155.20666368,0.00015,2]
[330735284,1719744468799,2125.30252605,0.00014999,2]
[330735285,1719744495268,207.82493266,0.00014999,2]
[330735287,1719744509134,-633.60179089,0.00015292,2]
[330735288,1719744509165,-9.09152803,0.00015293,2]
[330735289,1719744509203,-155.14828101,0.00015293,2]
[330735290,1719744509235,-271.47409985,0.00015294,2]
[330735291,1719744509272,-642.69331892,0.00015294,2]
[330735292,1719744519035,176.82898774,0.00014999,2]
[330735294,1719744533944,-154.77827162,0.00015294,2]
[330735295,1719744533979,-300.0,0.00015295,2]
[330735296,1719744534012,-222.15522767,0.00015295,2]
[330735297,1719744534058,-38.84477233,0.00015295,2]
[330735298,1719744534089,-638.08872696,0.00015296,2]
[330735299,1719744534132,-201.68726784,0.00015296,2]
[330735353,1719744634603,-300.0,0.00015295,2]
[330735355,1719744634613,-1258.79223962,0.00015296,2]
[330735363,1719744634877,-6112.4,0.00015296,2]
[330735418,1719744638761,-3050.0,0.00015296,2]
[330735420,1719744638773,-1800.06302846,0.00015296,2]
[330735422,1719744638785,-554.45605844,0.00015296,2]
[330735424,1719744638796,-1068.94569039,0.00015301,2]
[330735426,1719744638805,-5286.34479944,0.00015301,2]
[330735428,1719744638815,-1068.94569039,0.00015308,2]
[330735429,1719744638824,-1068.94569039,0.00015315,2]
[330735431,1719744638834,-1068.94569039,0.00015322,2]
[330735433,1719744638843,-787.43717343,0.00015369,2]
[330735434,1719744638852,-6057.02,0.00015391,2]
[330735436,1719744638863,-500.0,0.00015391,2]
[330735438,1719744638872,-1665.53,0.00015391,2]
[330735440,1719744638881,-4428.81,0.00015391,2]
[330735442,1719744638891,-500.0,0.00015391,2]
[330735443,1719744638900,-697.97,0.00015391,2]
[330735445,1719744638910,-500.0,0.00015391,2]
[330735447,1719744638920,-500.0,0.00015391,2]
[330735449,1719744638930,-500.0,0.00015392,2]
[330735450,1719744638940,-500.0,0.00015392,2]
[330735452,1719744638950,-736.09,0.00015392,2]
[330735454,1719744638960,-500.0,0.00015392,2]
[330735456,1719744638969,-500.0,0.00015392,2]
[330735457,1719744638979,-500.0,0.00015392,2]
[330735459,1719744638989,-500.0,0.00015392,2]
[330735461,1719744638999,-500.0,0.00015392,2]
[330735463,1719744639009,-382.69751023,0.00015392,2]
[330735465,1719744639023,-200.77325294,0.00015392,2]
[330735466,1719744639034,-37030.18,0.00015392,2]
[330735469,1719744639045,-500.0,0.00015392,2]
[330735471,1719744639059,-4400.6,0.00015392,2]
[330735473,1719744639069,-500.0,0.00015392,2]
[330735475,1719744639079,-501.20225164,0.00015392,2]
[330735477,1719744639089,-7952.8,0.00015392,2]
[330735478,1719744639101,-503.25470798,0.00015392,2]
[330735480,1719744639112,-501.70799239,0.00015392,2]
[330735482,1719744639122,-500.0,0.00015392,2]
[330735484,1719744639131,-500.0,0.00015392,2]
[330735485,1719744639141,-818.01,0.00015392,2]
[330735487,1719744639152,-3469.58,0.00015392,2]
[330735489,1719744639162,-698.32,0.00015392,2]
[330735491,1719744639172,-588.07,0.00015392,2]
[330735492,1719744639182,-500.0,0.00015392,2]
[330735494,1719744639193,-502.68202853,0.00015392,2]
[330735496,1719744639203,-500.0,0.00015392,2]
[330735498,1719744639212,-504.32857135,0.00015392,2]
[330735500,1719744639223,-500.0,0.00015392,2]
[330735501,1719744639232,-500.0,0.00015392,2]
[330735503,1719744639242,-500.0,0.00015392,2]
[330735505,1719744639252,-500.0,0.00015392,2]
[330735507,1719744639262,-490.34845535,0.00015392,2]
[330735509,1719744639271,-1580.38,0.00015392,2]
[330735510,1719744639281,-502.32933308,0.00015392,2]
[330735512,1719744639290,-1272.77,0.00015392,2]
[330735514,1719744639300,-502.75853814,0.00015392,2]
[330735516,1719744639310,-500.0,0.00015392,2]
[330735517,1719744639320,-651.9,0.00015392,2]
[330735519,1719744639329,-500.0,0.00015392,2]
[330735521,1719744639341,-500.0,0.00015392,2]
[330735522,1719744639351,-506.19227959,0.00015392,2]
[330735524,1719744639360,-500.0,0.00015392,2]
[330735526,1719744639370,-500.0,0.00015392,2]
[330735528,1719744639380,-513.74471728,0.00015392,2]
[330735529,1719744639390,-500.0,0.00015392,2]
[330735530,1719744639400,-500.0,0.00015392,2]
[330735531,1719744639410,-500.0,0.00015392,2]
[330735532,1719744639420,-5783.45,0.00015392,2]
[330735533,1719744639429,-501.7334312,0.00015392,2]
[330735534,1719744639439,-642.72365021,0.00015392,2]
[330735535,1719744639449,-8627.02,0.00015392,2]
[330735536,1719744639459,-500.0,0.00015392,2]
[330735537,1719744639469,-4424.6,0.00015392,2]
[330735538,1719744639479,-819.66,0.00015392,2]
[330735539,1719744639489,-500.0,0.00015392,2]
[330735540,1719744639499,-500.0,0.00015392,2]
[330735541,1719744639509,-748.34,0.00015392,2]
[330735542,1719744639518,-500.0,0.00015393,2]
[330735543,1719744639528,-2935.5,0.00015393,2]
[330735544,1719744639537,-883.38,0.00015393,2]
[330735545,1719744639549,-500.0,0.00015393,2]
[330735546,1719744639559,-500.0,0.00015393,2]
[330735547,1719744639569,-598.26,0.00015393,2]
[330735548,1719744639579,-3544.57,0.00015393,2]
[330735549,1719744639589,-210.84684265,0.00015393,2]
[330735550,1719744639599,-713.13,0.00015393,2]
[330735551,1719744639609,-500.0,0.00015393,2]
[330735552,1719744639619,-500.0,0.00015393,2]
[330735553,1719744639629,-500.0,0.00015393,2]
[330735554,1719744639638,-539.08330788,0.00015393,2]
[330735555,1719744639649,-697.61,0.00015393,2]
[330735556,1719744639659,-500.0,0.00015393,2]
[330735557,1719744639669,-500.0,0.00015393,2]
[330735558,1719744639679,-500.0,0.00015393,2]
[330735559,1719744639690,-518.6968974,0.00015393,2]
[330735560,1719744639700,-645.92,0.00015393,2]
[330735561,1719744639710,-3242.34,0.00015393,2]
[330735562,1719744639720,-3921.99,0.00015393,2]
[330735563,1719744639729,-501.5096367,0.00015393,2]
[330735564,1719744639739,-3215.64,0.00015393,2]
[330735565,1719744639749,-500.0,0.00015393,2]
[330735566,1719744639758,-501.72680499,0.00015393,2]
[330735567,1719744639768,-10757.47,0.00015393,2]
[330735568,1719744639778,-893.13,0.00015393,2]
[330735569,1719744639788,-500.0,0.00015393,2]
[330735570,1719744639799,-500.0,0.00015393,2]
[330735571,1719744639809,-501.00203503,0.00015393,2]
[330735572,1719744639819,-500.0,0.00015393,2]
[330735573,1719744639829,-952.67,0.00015393,2]
[330735574,1719744639839,-500.0,0.00015393,2]
[330735575,1719744639849,-1254.23,0.00015393,2]
[330735576,1719744639964,-500.0,0.00015393,2]
[330735577,1719744639976,-515.09824929,0.00015393,2]
[330735578,1719744639986,-500.0,0.00015393,2]
[330735579,1719744639996,-854.57,0.00015393,2]
[330735580,1719744640006,-1047.47,0.00015393,2]
[330735581,1719744640021,-1034.21,0.00015393,2]
[330735582,1719744640031,-604.95,0.00015393,2]
[330735583,1719744640041,-1318.82,0.00015393,2]
[330735584,1719744640050,-500.0,0.00015393,2]
[330735585,1719744640062,-1816.07,0.00015393,2]
[330735586,1719744640071,-1288.1,0.00015393,2]
[330735587,1719744640081,-1103.87,0.00015393,2]
[330735588,1719744640091,-3751.48,0.00015393,2]
[330735589,1719744640106,-2049.93,0.00015393,2]
[330735590,1719744640116,-17571.39,0.00015393,2]
[330735591,1719744640125,-514.37,0.00015393,2]
[330735592,1719744640134,-500.0,0.00015393,2]
[330735594,1719744640144,-5838.81,0.00015393,2]
[330735595,1719744640153,-500.0,0.00015393,2]
[330735597,1719744640163,-500.0,0.00015393,2]
[330735599,1719744640173,-506.29147008,0.00015393,2]
[330735601,1719744640183,-500.0,0.00015393,2]
[330735602,1719744640192,-500.0,0.00015393,2]
[330735604,1719744640202,-500.0,0.00015393,2]
[330735606,1719744640211,-500.0,0.00015393,2]
[330735608,1719744640220,-1993.28,0.00015393,2]
[330735609,1719744640229,-500.0,0.00015393,2]
[330735611,1719744640238,-1242.47,0.00015393,2]
[330735613,1719744640247,-135535.98127209,0.00015394,2]
[330735614,1719744640257,-500.0,0.00015394,2]
[330735615,1719744640266,-500.0,0.00015394,2]
[330735616,1719744640275,-188.09167626,0.00015394,2]
[330735617,1719744640284,-19527.30367059,0.00015395,2]
[330735618,1719744640293,-1404.62,0.00015395,2]
[330735619,1719744640304,-500.0,0.00015395,2]
[330735620,1719744640314,-500.0,0.00015395,2]
[330735621,1719744640323,-500.0,0.00015395,2]
[330735622,1719744640333,-500.0,0.00015395,2]
[330735624,1719744640343,-793.71,0.00015395,2]
[330735626,1719744640352,-500.0,0.00015395,2]
[330735628,1719744640361,-526.18308385,0.00015395,2]
[330735630,1719744640371,-550.43610066,0.00015395,2]
[330735632,1719744640380,-500.0,0.00015395,2]
[330735634,1719744640389,-500.0,0.00015395,2]
[330735637,1719744640399,-500.0,0.00015395,2]
[330735640,1719744640408,-594.27,0.00015395,2]
[330735643,1719744640417,-500.0,0.00015395,2]
[330735645,1719744640427,-546.67653894,0.00015395,2]
[330735648,1719744640436,-500.0,0.00015395,2]
[330735649,1719744640445,-500.0,0.00015395,2]
[330735651,1719744640454,-500.0,0.00015395,2]
[330735653,1719744640464,-500.0,0.00015395,2]
[330735655,1719744640473,-500.0,0.00015395,2]
[330735657,1719744640482,-1734.63,0.00015395,2]
[330735659,1719744640491,-500.0,0.00015395,2]
[330735661,1719744640501,-500.0,0.00015395,2]
[330735663,1719744640510,-838.23,0.00015395,2]
[330735665,1719744640519,-500.0,0.00015395,2]
[330735667,1719744640528,-754.12,0.00015395,2]
[330735668,1719744640537,-500.0,0.00015395,2]
[330735669,1719744640547,-508.10731312,0.00015395,2]
[330735670,1719744640556,-500.0,0.00015395,2]
[330735671,1719744640566,-711.91,0.00015395,2]
[330735672,1719744640575,-500.0,0.00015395,2]
[330735673,1719744640584,-500.0,0.00015395,2]
[330735674,1719744640594,-500.0,0.00015395,2]
[330735675,1719744640604,-614.86170782,0.00015395,2]
[330735676,1719744640614,-500.0,0.00015395,2]
[330735677,1719744640623,-500.0,0.00015395,2]
[330735678,1719744640633,-647.25,0.00015395,2]
[330735679,1719744640642,-541.28,0.00015395,2]
[330735680,1719744640652,-508.18186603,0.00015395,2]
[330735681,1719744640662,-505.69048026,0.00015395,2]
[330735682,1719744640672,-497.24081601,0.00015395,2]
[330735683,1719744640682,-500.0,0.00015395,2]
[330735684,1719744640692,-509.45315943,0.00015395,2]
[330735685,1719744640702,-1071.78,0.00015395,2]
[330735686,1719744640711,-504.34795031,0.00015395,2]
[330735687,1719744640721,-550.02769491,0.00015395,2]
[330735688,1719744640731,-500.0,0.00015395,2]
[330735689,1719744640740,-500.0,0.00015395,2]
[330735690,1719744640750,-1122.76,0.00015395,2]
[330735691,1719744640760,-651.93,0.00015395,2]
[330735692,1719744640770,-625.34,0.00015395,2]
[330735693,1719744640780,-517.27090328,0.00015395,2]
[330735694,1719744640790,-500.0,0.00015395,2]
[330735695,1719744640801,-500.0,0.00015395,2]
[330735696,1719744640811,-500.0,0.00015395,2]
[330735697,1719744640820,-699.59,0.00015395,2]
[330735698,1719744640830,-500.0,0.00015395,2]
[330735699,1719744640840,-503.58440114,0.00015395,2]
[330735700,1719744640849,-746.24,0.00015395,2]
[330735701,1719744640859,-2440.34,0.00015395,2]
[330735702,1719744640870,-352.42377064,0.00015395,2]
[330735703,1719744640879,-500.0,0.00015395,2]
[330735704,1719744640890,-500.0,0.00015395,2]
[330735705,1719744640900,-500.0,0.00015395,2]
[330735706,1719744640910,-510.23074069,0.00015395,2]
[330735707,1719744640920,-208.584817,0.00015395,2]
[330735708,1719744640930,-500.0,0.00015395,2]
[330735709,1719744640939,-1094.29,0.00015395,2]
[330735710,1719744640950,-500.0,0.00015395,2]
[330735711,1719744640959,-500.0,0.00015395,2]
[330735713,1719744640969,-500.0,0.00015395,2]
[330735714,1719744640978,-500.0,0.00015395,2]
[330735715,1719744640987,-1224.86,0.00015395,2]
[330735716,1719744640997,-229.6392511,0.00015395,2]
[330735753,1719744641349,-270.3607489,0.00015395,2]
[330735756,1719744641359,-500.0,0.00015395,2]
[330735759,1719744641368,-500.0,0.00015395,2]
[330735761,1719744641378,-500.0,0.00015395,2]
[330735763,1719744641387,-511.4377051,0.00015395,2]
[330735766,1719744641396,-1226.32,0.00015395,2]
[330735767,1719744641405,-596.21641794,0.00015395,2]
[330735980,1719744643961,-487.5,0.00015392,2]
[330736015,1719744644306,-12.5,0.00015392,2]
[330736017,1719744644316,-517.61358206,0.00015395,2]
[330736019,1719744644325,-356.35071583,0.00015395,2]
[330736020,1719744644333,-500.0,0.00015395,2]
[330736022,1719744644343,-645.3307828,0.00015395,2]
[330736024,1719744644352,-285.66684403,0.00015395,2]
[330736332,1719744647186,-2130.41057228,0.00015391,2]
[330736344,1719744647300,209.64337985,0.00014999,2]
[330736589,1719744680052,163.2477609,0.00014999,2]
[330736590,1719744738762,328.42255755,0.00014999,2]
[330736591,1719744764812,2123.67886485,0.00014999,2]
[330736592,1719744783326,1288.94360914,0.00014999,2]
[330736593,1719744797387,238.81070415,0.00015,2]
[330736594,1719744822984,542.0530126,0.00014392,2]
[330736595,1719744986445,3769.18827951,0.00014392,2]
[330736596,1719744989419,2099.6884772,0.00014392,2]
[330736597,1719744995691,2130.41057228,0.00014999,2]
[330736598,1719744996062,312.4061696,0.00014392,2]
[330736600,1719745057983,4826.71633385,0.00014392,2]
[330736601,1719745086081,950.54391632,0.00015,2]
[330736602,1719745109866,10701.31572155,0.00014998,2]
[330736603,1719745114261,2747.38522558,0.00015,2]
[330736604,1719745137206,2130.41057228,0.00014999,2]
[330736606,1719745243299,325.70219597,0.00015,2]
[330736607,1719745285724,2130.41057228,0.00014999,2]
[330736608,1719745347444,304.95543608,0.00014999,2]
[330736609,1719745372300,3075.6789159,0.00014999,2]
[330736611,1719745405795,933.86632555,0.00014999,2]
[330736613,1719745409402,848.86837099,0.00014999,2]
[330736614,1719745419758,933.86632555,0.00014999,2]
[330736620,1719745510638,1351.30558106,0.00014999,2]
[330736622,1719745550752,1488.52321555,0.00014999,2]
[330736623,1719745554783,779.89377542,0.00014999,2]
[330736625,1719745595041,1433.79006949,0.00014999,2]
[330736626,1719745657446,184.76087259,0.00014999,2]
[330736627,1719745671316,779.64459774,0.00014999,2]
[330736628,1719745684174,776.37615452,0.00014999,2]
[330736629,1719745698358,1487.46404015,0.00014999,2]
[330736631,1719745707597,150.0,0.00025,120]
[330736632,1719745714890,-697.89417355,0.00015113,2]
[330736633,1719745714929,-697.89417355,0.00015113,2]
[330736634,1719745714985,-391.19095161,0.00015113,2]
[330736636,1719745739930,-733.63375952,0.00015113,2]
[330736637,1719745739982,-733.63375952,0.00015113,2]
[330736638,1719745740050,-340.68624849,0.00015113,2]
[330736639,1719745751040,1433.79006949,0.00014999,2]
[330736641,1719745819805,1219.42,0.00025,120]
[330736657,1719745832155,-2099.12417969,0.0001529,2]
[330736659,1719745832165,-300.0,0.0001529,2]
[330736661,1719745832175,-300.0,0.0001529,2]
[330736663,1719745832184,-2099.12417965,0.0001529,2]
[330736665,1719745832194,-2099.12417965,0.00015291,2]
[330736667,1719745832203,-2099.12417965,0.00015291,2]
[330736669,1719745832213,-2099.12417965,0.00015291,2]
[330736671,1719745832223,-150.0,0.00015295,2]
[330736673,1719745832233,-385.60555767,0.000153,2]
[330736718,1719745839094,-419728.49391249,0.000153,2]
[330736765,1719745840565,-76436.70491047,0.000153,2]
[330736792,1719745841349,818.0194183,0.00014999,2]
[330737049,1719745865193,718.24278849,0.00014999,2]
[330737050,1719745925047,1433.79006949,0.00014999,2]
[330737051,1719745965657,3214.73869626,0.00014999,2]
[330737053,1719746012885,215.75304199,0.00014999,2]
[330737054,1719746014458,297.63066872,0.00014999,2]
[330737056,1719746106553,1433.79006949,0.00014999,2]
[330737057,1719746117567,1433.79006949,0.00014999,2]
[330737058,1719746155047,532.22357579,0.00014999,2]
[330737060,1719746168005,1618.66906895,0.00014999,2]
[330737061,1719746181628,1616.08998774,0.00014999,2]
[330737065,1719746263593,213.14670908,0.00014999,2]
[330737066,1719746285567,844.99088656,0.00014999,2]
[330737068,1719746322838,155.38470685,0.00014999,2]
[330737069,1719746326363,999.10133476,0.00014999,2]
[330737074,1719746431217,177.81829636,0.00014999,4]
[330737076,1719746505293,776.37615452,0.00014999,2]
[330737078,1719746589886,3328.95507495,0.00014838,2]
[330737080,1719746596699,154.83742071,0.00014999,2]
[330737081,1719746599692,2888.62063535,0.00014999,2]
[330737083,1719746671772,775.860529,0.00014999,2]
[330737086,1719746734558,215.12590572,0.000225,30]
[330737087,1719746742689,155.15682163,0.00014999,2]
[330737090,1719746855558,208.98551847,0.00014999,2]
[330737094,1719746978869,24900.0,0.00014385,2]
[330737095,1719746980108,427.57293099,0.00014999,2]
[330737096,1719746980138,293.25511652,0.00014999,2]
[330737097,1719746985450,-704.12998928,0.00015289,2]
[330737098,1719746985503,-704.12998928,0.00015289,2]
[330737099,1719746985688,-165.69415096,0.00015289,2]
[330737100,1719746991569,175.07119767,0.00014999,2]
[330737101,1719746994046,154.83742071,0.00014999,2]
[330737102,1719747010378,-735.60907187,0.000153,2]
[330737103,1719747010428,-735.60907187,0.000153,2]
[330737104,1719747010482,-361.98743439,0.000153,2]
[330737105,1719747014514,250.87396914,0.00014999,2]
[330737222,1719747033224,304.10583694,0.00014999,2]
[330737812,1719747039273,-3158.99662067,0.000153,2]
[330738151,1719747046617,-20330.32471277,0.000153,2]
[330738152,1719747150115,157.73169092,0.00014999,2]
[330738155,1719747151139,193.4130163,0.00014999,2]
[330738156,1719747155410,2107.2572645,0.00014385,2]
[330738161,1719747167547,3000.0,0.00014385,2]
[330738162,1719747180041,390.0345248,0.00014385,2]
[330738163,1719747184295,164.41835835,0.00014999,2]
[330738164,1719747206035,401.85436649,0.00014999,2]
[330738165,1719747267187,181.14978502,0.00014999,2]
[330738181,1719747412493,2236.0511563,0.00014385,2]
[330738193,1719747546877,3598.89620744,0.00014385,2]
[330738196,1719747606075,154.83742071,0.00014999,2]
[330738197,1719747607539,150.0,0.0001499,2]
[330738198,1719747609910,457.83791694,0.00014999,2]
[330738199,1719747626921,457.83791694,0.00014999,2]
[330738200,1719747636600,566.23632333,0.00014999,2]
[330738201,1719747643457,3074.87437864,0.00014999,2]
[330738202,1719747685904,182.91248073,0.00014999,2]
[330738203,1719747703977,545.7608137,0.00014941,2]
[330738204,1719747751385,154.83742071,0.00014999,2]
[330738205,1719747766081,155.03295524,0.00014999,2]
[330738206,1719747771112,566.23632333,0.00014999,2]
[330738207,1719747785313,-403.83587048,0.00015285,2]
[330738208,1719747785337,-59596.16412952,0.000153,2]
[330738209,1719747785653,374.96748227,0.00014999,2]
[330738210,1719747800423,435.27609847,0.00014999,2]
[330738211,1719747802835,776.37615452,0.00014999,2]
[330738212,1719747805615,208.83646676,0.00025,120]
[330738214,1719747829972,768.73055895,0.00014999,2]
[330738215,1719747838476,618.17611777,0.00014999,2]
[330738216,1719747898897,155.24674686,0.00014999,2]
[330738217,1719747914342,608.79482763,0.00014999,2]
[330738218,1719747966180,157.31692193,0.00014999,2]
[330738219,1719747976850,776.37615452,0.00014999,2]
[330738221,1719747992843,776.37615452,0.00014999,2]
[330738222,1719748007944,286.62229144,0.00014999,2]
[330738223,1719748008830,200.70286895,0.00014999,2]
[330738226,1719748043559,154.83742071,0.00014999,2]
[330738227,1719748051507,154.83742071,0.00014999,2]